bitfinex-derivatives/quotes_ETHF0:USTF0_20250910
["timestamp","ask_amount","ask_price","bid_price","bid_amount"]
[1757532537043,0.2981,4308.4,4307.3,1.04453]
[1757532537044,0.2981,4308.4,4306.1,1.84891451]
[1757532537244,33.48,4308.3,4307.0,0.1252]
[1757532537548,3.2078,4307.1,4306.1,1.84891451]
[1757532537741,0.82195917,4308.2,4305.5,0.1252]
[1757532537742,3.2078,4306.2,4305.5,0.1252]
[1757532537946,3.2078,4305.6,4305.5,0.1252]
[1757532539045,3.2078,4305.6,4305.5,2.7401]
[1757532539258,3.2078,4305.6,4305.5,3.0421]
[1757532539951,3.2078,4305.6,4305.5,0.4272]
[1757532540651,3.2078,4305.6,4305.5,3.0421]
[1757532541051,0.3269,4306.9,4305.6,0.41797]
[1757532541244,0.1187,4307.0,4306.5,3.2078]
[1757532541647,0.3269,4306.9,4306.6,0.0586]
[1757532541846,3.2078,4307.4,4306.5,3.2078]
[1757532541847,0.3269,4307.4,4306.7,0.264]
[1757532543558,0.1187,4307.0,4306.7,0.264]
[1757532543851,0.3269,4306.9,4306.7,0.264]
[1757532544053,0.1187,4307.0,4306.7,0.264]
[1757532544245,0.3269,4306.9,4306.7,0.264]
[1757532544951,0.1187,4307.0,4306.7,0.264]
[1757532545451,0.3269,4306.9,4306.7,0.264]
[1757532545755,0.1187,4307.0,4306.7,0.3226]
[1757532545955,0.4456,4307.0,4306.7,0.3226]
[1757532546356,0.3269,4306.9,4306.7,0.3226]
[1757532546746,0.3269,4307.4,4306.7,0.3226]
[1757532546953,0.3269,4307.4,4307.0,3.2664]
[1757532547151,0.3269,4307.4,4307.1,0.263]
[1757532547353,3.2078,4307.9,4307.1,0.263]
[1757532547644,0.1187,4309.0,4307.0,3.2078]
[1757532547645,0.1187,4307.5,4307.0,3.2078]
[1757532547844,0.3269,4305.9,4305.3,3.2078]
[1757532548047,0.1187,4306.5,4305.4,0.0586]
[1757532548048,0.3269,4306.4,4305.4,0.0586]
[1757532548258,0.3269,4306.4,4305.6,2.98543663]
[1757532548452,0.4456,4306.5,4305.9,3.2078]
[1757532549050,0.4456,4305.5,4305.4,3.2078]
[1757532549245,0.1187,4306.0,4305.4,3.2078]
[1757532549449,0.7106,4306.0,4305.4,3.2078]
[1757532550545,0.4456,4306.0,4305.4,3.2078]
[1757532555255,0.1187,4306.5,4306.0,0.0586]
[1757532555459,0.3269,4306.9,4306.4,3.2078]
[1757532555850,3.2078,4307.4,4306.4,3.2078]
[1757532556251,0.3269,4306.9,4306.4,3.2078]
[1757532556457,3.2078,4307.4,4306.4,3.2078]
[1757532556659,0.3269,4306.9,4306.4,3.2078]
[1757532556958,3.2078,4307.4,4306.4,3.2078]
[1757532557453,0.3269,4306.9,4306.4,3.2078]
[1757532557959,3.2078,4307.4,4306.4,3.2078]
[1757532558453,0.3269,4306.9,4306.4,3.2078]
[1757532558654,3.2078,4307.4,4306.4,3.2078]
[1757532559362,0.3269,4306.9,4306.4,3.2078]
[1757532559560,3.2078,4307.4,4306.4,3.2078]
[1757532559863,0.3269,4306.9,4306.4,3.2078]
[1757532560163,0.3269,4307.2,4306.5,0.47648]
[1757532560356,0.1187,4307.5,4306.9,3.2078]
[1757532560758,0.4456,4307.0,4306.9,3.2078]
[1757532563062,0.4456,4307.5,4306.9,3.2078]
[1757532563559,0.1187,4307.5,4306.9,3.2078]
[1757532563954,0.4456,4307.0,4306.9,3.2078]
[1757532564448,0.1187,4307.5,4306.9,3.2078]
[1757532564654,0.4456,4307.5,4306.9,3.2078]
[1757532565964,0.3269,4307.9,4307.3,0.41781]
[1757532566153,0.3269,4307.9,4307.4,0.261]
[1757532566660,0.3269,4308.3,4307.7,3.62557]
[1757532566853,0.3269,4308.3,4307.8,0.1469]
[1757532567060,0.3384,4308.4,4307.8,0.1469]
[1757532567870,0.261,4308.9,4307.7,3.4688]
[1757532568069,0.3384,4307.9,4307.7,3.4688]
[1757532568456,0.1446,4308.0,4307.7,3.4688]
[1757532568859,0.3384,4307.9,4307.7,3.4688]
[1757532569156,0.3384,4308.4,4307.7,4.03347]
[1757532569351,0.3384,4308.4,4307.7,3.88657]
[1757532569561,0.3384,4308.4,4307.8,0.1469]
[1757532571156,0.3384,4308.4,4307.8,0.56466]
[1757532571563,0.3384,4308.4,4308.3,3.2078]
[1757532572762,0.5808,4308.4,4308.3,3.4428]
[1757532573750,0.8217,4308.4,4308.3,3.4428]
[1757532573959,0.8217,4308.4,4308.3,3.2078]
[1757532574975,0.5808,4308.4,4308.3,3.6735]
[1757532575565,3.9073,4309.0,4308.9,0.235]
[1757532575966,4.1482,4309.0,4308.9,0.235]
[1757532576159,4.1482,4309.0,4308.6,0.259]
[1757532576864,3.3265,4309.0,4308.8,0.235]
[1757532577058,0.5808,4308.9,4308.8,0.4657]
[1757532577667,0.5808,4308.9,4308.8,3.6735]
[1757532578059,0.8217,4308.9,4308.8,3.6735]
[1757532579058,0.8217,4308.9,4308.8,3.2078]
[1757532579856,0.8217,4308.9,4308.8,3.4428]
[1757532580060,0.8217,4308.9,4308.8,3.6735]
[1757532580364,0.8217,4308.9,4308.8,3.4428]
[1757532580863,0.8217,4308.9,4308.8,3.6735]
[1757532581063,0.3384,4308.9,4308.8,3.6735]
[1757532581463,0.5808,4308.9,4308.8,3.6735]
[1757532581667,0.8217,4308.9,4308.8,3.6735]
[1757532581868,0.8217,4308.9,4308.8,3.4428]
[1757532582661,0.258,4309.6,4308.8,3.8204]
[1757532582861,0.3384,4309.4,4308.8,4.0784]
[1757532583070,36.6488,4309.7,4308.8,4.0784]
[1757532583461,36.9058,4309.7,4308.8,4.49606]
[1757532583664,0.3384,4309.4,4309.3,0.4657]
[1757532584065,0.5808,4309.4,4309.3,0.4657]
[1757532584469,0.3384,4309.4,4309.3,3.6735]
[1757532585268,0.5808,4309.4,4309.3,3.6735]
[1757532586569,0.8217,4309.4,4309.3,0.235]
[1757532587171,0.8217,4309.4,4309.3,3.6735]
[1757532587567,0.5808,4309.4,4309.3,3.6735]
[1757532587770,0.3384,4309.4,4309.3,3.6735]
[1757532587965,0.8217,4309.4,4309.0,0.257]
[1757532588168,3.2078,4309.8,4308.8,0.4657]
[1757532588169,0.8217,4308.9,4308.8,0.4657]
[1757532588371,0.5808,4308.9,4308.8,23.1657]
[1757532590178,0.3384,4308.9,4308.8,23.3126]
[1757532591171,0.3384,4309.4,4308.8,23.3126]
[1757532591474,0.8217,4309.4,4309.3,0.4657]
[1757532591677,0.8217,4309.4,4309.3,3.6735]
[1757532591678,0.5808,4309.4,4309.3,3.6735]
[1757532592574,0.8217,4309.4,4309.3,3.4428]
[1757532592980,0.8217,4309.4,4309.3,3.6735]
[1757532595382,0.3384,4309.4,4309.3,3.8093]
[1757532595679,0.3384,4309.7,4309.3,3.6735]
[1757532595880,0.4571,4309.5,4309.4,0.8252]
[1757532596683,0.3384,4309.9,4309.4,0.8252]
[1757532596884,0.3312,4309.9,4309.4,0.6894]
[1757532597180,0.7023,4310.0,4309.9,0.4306]
[1757532597776,0.934,4310.0,4309.9,0.4306]
[1757532597980,0.934,4310.0,4309.6,0.255]
[1757532598285,0.934,4310.0,4309.9,0.2153]
[1757532598581,0.934,4310.0,4309.9,0.4306]
[1757532599081,0.145,4310.5,4309.9,3.2078]
[1757532599280,0.4762,4310.0,4309.9,3.04653653]
[1757532599576,0.9344,4310.0,4309.9,26.1628]
[1757532600579,0.4762,4310.0,4309.9,26.1628]
[1757532600777,0.7027,4310.0,4309.9,26.1628]
[1757532600979,0.9344,4310.0,4309.9,25.9078]
[1757532601175,0.9344,4310.0,4309.9,22.7]
[1757532601478,0.7894,4309.4,4309.3,3.2078]
[1757532601680,0.7894,4309.4,4309.3,3.4628]
[1757532601876,0.7894,4309.4,4309.3,3.2078]
[1757532602374,0.145,4310.0,4309.3,3.2078]
[1757532602581,14.322,4322.1,4309.3,3.2078]
[1757532602582,0.145,4311.5,4309.9,3.2078]
[1757532602772,0.145,4311.5,4309.6,2.325]
[1757532602773,0.4582,4311.4,4311.3,3.2078]
[1757532602976,0.4582,4311.4,4311.3,3.4668]
[1757532603372,4.4582,4311.4,4311.3,3.2078]
[1757532603585,0.145,4310.0,4309.8,0.41757]
[1757532603888,0.145,4310.0,4309.9,6.5022332]
[1757532604088,0.145,4310.0,4309.9,29.43425319]
[1757532604383,0.145,4310.0,4309.9,25.9078]
[1757532604578,0.7027,4310.0,4309.9,25.9078]
[1757532604777,0.4762,4310.0,4309.9,25.9078]
[1757532604981,0.4762,4310.0,4309.9,26.1668]
[1757532605183,0.4762,4310.0,4309.9,25.9078]
[1757532605487,0.4762,4310.0,4309.9,3.2078]
[1757532607681,0.4762,4310.0,4309.5,0.259]
[1757532607989,0.9344,4309.5,4309.4,3.2078]
[1757532608787,0.145,4310.5,4309.4,10.38819935]
[1757532608984,0.145,4311.5,4310.4,3.2078]
[1757532609187,0.145,4311.5,4310.8,3.2078]
[1757532609386,0.145,4311.0,4310.9,0.259]
[1757532609583,0.145,4311.0,4309.6,33.418]
[1757532609584,0.145,4310.5,4310.3,3.2078]
[1757532609784,0.145,4310.5,4310.4,0.259]
[1757532610186,0.145,4310.5,4310.3,3.2078]
[1757532610386,0.145,4310.5,4310.4,0.259]
[1757532610587,0.145,4310.5,4310.3,3.2078]
[1757532610985,0.3312,4310.4,4310.3,3.2078]
[1757532613492,0.3312,4309.9,4309.7,3.2078]
[1757532613793,0.3312,4309.4,4309.2,3.2078]
[1757532613980,0.145,4309.5,4309.2,3.2078]
[1757532614185,0.3312,4309.4,4309.2,3.2078]
[1757532614388,0.145,4309.5,4309.2,3.2078]
[1757532614585,0.3312,4309.4,4309.2,3.2078]
[1757532614892,0.145,4309.5,4309.2,3.2078]
[1757532615996,0.3312,4309.4,4309.2,3.2078]
[1757532616296,0.145,4312.0,4310.4,0.41751]
[1757532616597,0.145,4312.0,4311.1,3.2078]
[1757532616598,0.145,4311.5,4311.1,3.2078]
[1757532617694,0.145,4311.5,4311.2,0.3879]
[1757532617897,0.145,4312.0,4311.2,0.262]
[1757532618197,0.145,4312.0,4311.6,3.2078]
[1757532618394,0.3312,4311.9,4311.6,3.2078]
[1757532619097,0.145,4312.0,4311.6,3.2078]
[1757532619394,0.3312,4311.9,4311.6,3.2078]
[1757532619700,0.145,4312.0,4311.6,3.2078]
[1757532619888,0.145,4311.5,4311.0,3.2078]
[1757532620197,0.3312,4310.9,4310.5,3.2078]
[1757532620798,0.145,4311.0,4310.5,3.2078]
[1757532620996,0.3312,4310.9,4310.5,3.2078]
[1757532621192,0.145,4311.0,4310.5,3.2078]
[1757532621397,0.145,4311.0,4310.5,3.3337]
[1757532621589,0.3312,4310.9,4310.5,3.2078]
[1757532621789,0.145,4311.0,4310.5,3.2078]
[1757532621994,0.145,4311.0,4310.0,3.2078]
[1757532622194,0.3312,4310.9,4310.1,0.261]
[1757532622595,0.3312,4310.9,4310.0,3.3337]
[1757532622790,0.145,4310.5,4310.0,3.2078]
[1757532622996,0.3312,4310.4,4310.0,3.2078]
[1757532623800,0.145,4310.5,4310.0,3.2078]
[1757532624001,0.145,4310.5,4310.0,3.3337]
[1757532624302,0.145,4310.5,4310.2,0.1259]
[1757532624502,0.4762,4310.5,4310.2,0.1259]
[1757532625297,0.3312,4310.5,4310.2,0.1259]
[1757532625601,0.3312,4310.9,4310.2,0.1259]
[1757532625797,0.3312,4311.4,4310.7,0.1259]
[1757532625999,0.3312,4311.4,4310.8,0.261]
[1757532627609,0.1408,4311.0,4310.7,0.261]
[1757532627800,0.3593,4310.9,4310.7,0.261]
[1757532628100,0.3593,4310.9,4310.5,0.26]
[1757532628601,0.1408,4311.0,4310.5,0.26]
[1757532629001,0.3593,4310.9,4310.1,3.3569]
[1757532629201,0.3593,4310.9,4310.2,0.26]
[1757532631199,0.3593,4310.9,4310.1,3.3569]
[1757532631399,0.1408,4311.0,4310.1,3.2078]
[1757532631600,0.3593,4310.9,4310.1,3.4678]
[1757532631800,0.1408,4311.0,4310.1,3.4678]
[1757532632395,0.3593,4310.9,4310.1,3.4678]
[1757532632595,0.1408,4311.0,4310.1,3.4678]
[1757532632800,0.3593,4310.9,4310.1,3.4678]
[1757532633007,0.1408,4311.0,4310.1,3.4678]
[1757532633393,0.1408,4311.0,4310.1,3.2078]
[1757532633599,0.1408,4311.0,4310.1,3.4678]
[1757532633799,0.3593,4310.9,4310.1,3.4678]
[1757532634200,0.3593,4310.9,4310.1,3.4668]
[1757532634404,0.1408,4311.0,4310.1,3.4668]
[1757532634603,0.1408,4311.0,4310.1,3.2078]
[1757532634810,0.3593,4310.9,4310.1,3.4668]
[1757532635099,0.1408,4311.0,4310.9,0.4731]
[1757532635304,0.7327,4311.0,4310.9,0.4731]
[1757532636005,0.9784,4311.0,4310.9,0.4731]
[1757532636206,0.9784,4311.0,4310.9,0.2386]
[1757532638795,3.2078,4311.4,4311.1,0.41744]
[1757532639000,0.8376,4311.9,4311.8,0.2386]
[1757532639197,0.8376,4311.4,4311.3,3.2078]
[1757532639402,0.7327,4311.0,4310.9,23.1986]
[1757532639902,0.5001,4311.0,4310.9,23.4331]
[1757532640299,0.3593,4311.0,4310.9,23.4331]
[1757532640495,0.5001,4311.5,4310.9,26.79]
[1757532640904,0.7327,4311.0,4310.9,3.6809]
[1757532641108,0.9784,4311.0,4310.9,3.4464]
[1757532641502,0.5001,4311.5,4310.9,3.6809]
[1757532641704,0.5001,4311.5,4310.9,3.83]
[1757532642909,0.8376,4311.4,4311.3,0.2386]
[1757532643604,0.5001,4311.0,4310.9,3.9399]
[1757532643906,0.7327,4311.0,4310.9,3.9399]
[1757532644110,0.5001,4311.0,4310.9,3.9399]
[1757532645908,0.5001,4311.0,4310.9,3.6809]
[1757532646111,0.5001,4311.0,4310.9,3.9389]
[1757532648712,0.7327,4311.0,4310.9,3.9389]
[1757532649009,0.7327,4311.0,4310.9,3.6809]
[1757532649213,0.7327,4311.0,4310.9,3.9389]
[1757532649606,0.9784,4311.0,4310.9,3.9389]
[1757532650011,0.7327,4311.0,4310.9,3.9389]
[1757532650508,0.5001,4311.0,4310.9,4.088]
[1757532650709,0.1408,4311.5,4310.9,3.9389]
[1757532651006,0.1408,4311.5,4311.4,3.83]
[1757532651208,3.3528,4312.0,4311.4,3.9379]
[1757532651406,3.3528,4312.0,4311.5,0.1491]
[1757532651607,3.9447,4312.0,4311.9,0.4731]
[1757532651807,4.1904,4312.0,4311.9,0.4731]
[1757532652002,0.9826,4312.0,4311.9,0.4731]
[1757532652205,0.9826,4312.0,4311.9,3.6809]
[1757532652404,0.5043,4312.0,4311.9,3.83]
[1757532652612,0.7369,4312.5,4312.4,0.4731]
[1757532652812,0.9826,4312.5,4312.4,0.4731]
[1757532653011,0.1408,4313.0,4312.4,0.4731]
[1757532653213,0.3593,4312.9,4312.8,0.4731]
[1757532653608,0.3593,4312.9,4312.8,0.7301]
[1757532654209,0.5919,4312.9,4312.8,0.7301]
[1757532654520,0.1408,4313.0,4312.8,0.7301]
[1757532654521,0.5001,4313.0,4312.9,0.4731]
[1757532654814,0.5001,4313.0,4312.9,3.83]
[1757532655113,0.9784,4313.0,4312.9,3.2078]
[1757532655308,0.9784,4313.0,4312.9,3.4277]
[1757532655505,0.9784,4313.0,4312.9,3.6476]
[1757532655909,0.7327,4313.0,4312.9,3.6476]
[1757532656816,0.9784,4313.0,4312.9,3.6476]
[1757532658218,0.4873,4313.5,4313.4,0.5738]
[1757532658416,0.4873,4313.5,4313.4,3.7816]
[1757532658915,0.1408,4314.0,4313.4,3.645]
[1757532659120,0.7308,4314.0,4313.9,0.2186]
[1757532659314,0.14,4313.5,4313.4,3.2078]
[1757532659524,0.9614,4313.0,4312.9,3.2078]
[1757532659819,0.9614,4313.0,4312.9,3.4264]
[1757532660508,0.9614,4313.0,4312.9,3.645]
[1757532660714,0.4865,4313.5,4313.4,0.4372]
[1757532660918,0.73,4313.5,4313.4,0.4372]
[1757532661113,0.9614,4313.5,4313.4,0.4372]
[1757532662420,0.1408,4314.0,4313.4,3.645]
[1757532662618,0.1408,4314.0,4313.4,3.7816]
[1757532662818,0.3843,4314.0,4313.9,3.645]
[1757532663018,0.7308,4314.0,4313.9,3.645]
[1757532663421,0.9622,4314.0,4313.9,3.645]
[1757532664528,0.4873,4314.0,4313.9,3.645]
[1757532664916,0.7308,4314.0,4313.9,3.645]
[1757532665127,0.9622,4314.0,4313.9,3.4264]
[1757532666018,0.9622,4314.0,4313.6,0.255]
[1757532666218,0.8214,4313.7,4313.6,0.255]
[1757532666529,0.8214,4313.7,4313.6,0.4372]
[1757532666825,0.3465,4313.7,4313.6,0.4372]
[1757532667334,0.59,4313.7,4313.6,0.4372]
[1757532667620,0.59,4313.7,4313.4,3.4628]
[1757532667621,0.1408,4314.0,4313.7,0.1366]
[1757532667814,0.4873,4314.0,4313.9,3.7816]
[1757532668018,0.4873,4314.0,4313.9,3.645]
[1757532668334,0.9622,4314.0,4313.9,3.645]
[1757532668535,0.9622,4314.0,4313.9,3.2078]
[1757532669241,0.9622,4314.0,4313.9,3.4264]
[1757532670144,0.7308,4314.0,4313.9,3.645]
[1757532671436,0.4873,4314.0,4313.9,3.645]
[1757532673443,0.4873,4314.0,4313.9,3.7816]
[1757532674241,0.14,4315.0,4313.9,3.7816]
[1757532674443,0.4865,4314.0,4313.9,3.7816]
[1757532675043,0.9614,4314.0,4313.9,3.645]
[1757532675833,0.9614,4314.0,4313.3,3.2078]
[1757532675834,0.14,4313.5,4313.3,3.2078]
[1757532676141,0.8214,4312.9,4312.8,3.2078]
[1757532676337,0.14,4313.5,4312.8,3.7816]
[1757532676646,0.2435,4312.9,4312.8,3.645]
[1757532676944,0.8214,4312.9,4312.8,3.4264]
[1757532678942,0.8214,4312.9,4312.8,3.645]
[1757532679243,0.8214,4312.9,4312.8,3.4264]
[1757532679445,0.8214,4312.9,4311.6,33.8214]
[1757532679446,0.8214,4312.3,4312.2,3.6794]
[1757532679642,0.8214,4312.3,4312.2,3.4264]
[1757532680346,0.8214,4312.3,4312.2,3.2078]
[1757532680544,0.4749,4311.8,4311.7,3.2078]
[1757532680749,0.8214,4311.8,4311.7,3.4264]
[1757532681045,0.8214,4311.8,4311.7,3.645]
[1757532683641,0.59,4311.8,4311.7,3.645]
[1757532684242,0.8214,4311.8,4311.7,3.645]
[1757532684740,0.59,4311.8,4311.7,3.645]
[1757532685047,0.3465,4311.9,4311.8,0.5738]
[1757532686148,0.3465,4311.9,4311.8,0.4372]
[1757532686948,0.5763,4311.9,4311.8,0.4372]
[1757532687149,0.8102,4311.9,4311.8,0.4372]
[1757532687448,0.5893,4311.3,4311.2,3.4067]
[1757532687650,0.5893,4311.3,4311.2,3.6056]
[1757532690650,0.8232,4311.3,4311.2,3.4067]
[1757532692850,0.8232,4311.3,4311.2,3.2078]
[1757532693046,0.8232,4311.3,4311.2,3.4067]
[1757532693446,0.8232,4311.3,4311.2,3.6056]
[1757532693645,0.5893,4311.3,4311.2,3.6056]
[1757532694849,0.8232,4311.3,4311.2,3.2078]
[1757532695354,1.05515001,4311.3,4311.2,3.2078]
[1757532695750,0.8232,4311.3,4311.2,3.2078]
[1757532696950,0.1345,4311.5,4311.2,3.7299]
[1757532697149,0.5893,4311.8,4311.7,0.3978]
[1757532697358,0.8232,4311.8,4311.7,0.3978]
[1757532697854,0.8232,4311.8,4311.7,0.1989]
[1757532700247,0.3595,4311.8,4311.7,3.7299]
[1757532700448,0.2319,4311.9,4311.7,3.6056]
[1757532700647,0.2319,4311.9,4311.8,0.5221]
[1757532701557,0.5914,4311.9,4311.8,0.5221]
[1757532701760,1.0551,4311.9,4311.8,0.3978]
[1757532703155,0.8212,4311.9,4311.8,0.3978]
[1757532703363,0.5914,4311.9,4311.8,0.5221]
[1757532703664,0.2319,4311.9,4311.8,0.5221]
[1757532704051,0.5914,4311.9,4311.8,0.5221]
[1757532704252,0.8212,4311.9,4311.8,0.3978]
[1757532705055,1.0551,4311.9,4311.8,0.1989]
[1757532705263,1.0551,4311.9,4311.8,0.3978]
[1757532710159,1.0551,4311.9,4311.8,0.1989]
[1757532710361,0.3595,4311.8,4311.7,3.2078]
[1757532710564,0.8232,4311.8,4311.7,3.4067]
[1757532711260,0.8232,4311.8,4311.7,3.8546]
[1757532711656,1.0551,4311.8,4311.7,3.8546]
[1757532713370,0.5914,4311.8,4311.7,3.9789]
[1757532714366,0.2319,4311.8,4311.7,8.62821]
[1757532714554,0.2319,4311.8,4311.7,8.21082]
[1757532714759,0.2319,4311.8,4311.7,8.39629]
[1757532714954,3.2078,4313.2,4311.7,8.39629]
[1757532714955,0.3595,4312.9,4311.9,0.41736]
[1757532715160,0.8232,4312.9,4312.8,3.2078]
[1757532715560,0.5893,4312.9,4312.8,3.2078]
[1757532716364,0.5893,4312.9,4312.8,3.4568]
[1757532716558,0.3595,4312.9,4312.8,3.4568]
[1757532717359,0.3595,4312.9,4312.8,7.4568]
[1757532717766,0.4752,4313.0,4312.8,7.4568]
[1757532718267,0.3352,4312.9,4312.8,3.2078]
[1757532718462,0.3352,4312.9,4312.8,3.7445892]
[1757532718771,0.5658,4312.9,4312.8,3.4955892]
[1757532718972,0.5658,4312.9,4312.8,3.7445892]
[1757532719673,0.5658,4312.9,4312.8,3.4568]
[1757532719876,0.5658,4312.9,4312.8,3.2078]
[1757532720072,0.5658,4312.9,4312.8,3.4568]
[1757532720265,0.5658,4312.9,4312.8,3.2078]
[1757532720574,0.8009,4312.9,4312.8,3.4568]
[1757532720767,0.8009,4312.9,4312.8,3.2078]
[1757532724770,0.5658,4312.9,4312.8,3.2078]
[1757532725170,0.8009,4312.9,4312.8,3.4568]
[1757532725676,0.8009,4312.9,4312.8,3.2078]
[1757532727071,0.14,4313.0,4312.8,3.4568]
[1757532727273,0.14,4313.0,4312.8,3.87408]
[1757532727473,0.4752,4313.0,4312.8,3.87408]
[1757532727673,0.4752,4313.0,4312.8,3.4568]
[1757532728069,0.4752,4313.0,4312.8,3.87408]
[1757532728282,0.8009,4312.9,4312.8,3.4568]
[1757532729275,0.14,4313.0,4311.4,1.04355]
[1757532729276,0.2306,4312.3,4312.2,3.2078]
[1757532729474,0.8009,4312.3,4312.2,3.2078]
[1757532734990,0.3352,4312.3,4312.2,3.62514]
[1757532735191,0.3352,4312.3,4312.2,3.87414]
[1757532735382,0.4752,4313.0,4312.2,7.4568]
[1757532735690,0.4752,4313.0,4312.9,3.2078]
[1757532735982,0.1299,4314.5,4313.0,0.41726]
[1757532736180,0.4697,4313.5,4313.4,3.2078]
[1757532737486,0.1345,4313.5,4313.4,3.2078]
[1757532737787,0.3352,4313.8,4313.7,0.41719]
[1757532738281,0.3352,4313.8,4313.7,0.66619]
[1757532739291,0.3352,4313.8,4313.7,0.249]
[1757532740591,0.5658,4313.8,4313.7,0.249]
[1757532742489,0.3352,4313.8,4313.4,3.2078]
[1757532742794,0.4651,4313.5,4313.4,3.2078]
[1757532742995,0.1299,4313.5,4313.4,3.4568]
[1757532743195,0.1299,4313.5,4313.4,26.1568]
[1757532743795,0.3605,4314.0,4313.4,26.1568]
[1757532743995,0.3605,4314.0,4313.9,3.2078]
[1757532744196,0.5956,4314.0,4313.9,3.2078]
[1757532744403,0.9308,4314.0,4313.9,3.2078]
[1757532744899,0.4651,4314.0,4313.9,3.2078]
[1757532745099,0.1299,4314.5,4314.0,0.41716]
[1757532745294,0.4651,4314.5,4314.4,3.2078]
[1757532745493,0.6957,4314.5,4314.4,3.2078]
[1757532745694,0.4651,4314.5,4314.4,3.2078]
[1757532746088,0.6957,4314.5,4314.4,3.2078]
[1757532746388,0.9308,4314.5,4314.4,3.2078]
[1757532746590,0.9308,4314.5,4314.4,3.4568]
[1757532748699,0.4651,4314.5,4314.4,3.4568]
[1757532749204,0.6991,4314.5,4314.4,3.4568]
[1757532750395,0.6991,4314.5,4314.4,3.2078]
[1757532750595,0.9245,4314.5,4314.4,3.4568]
[1757532751803,0.9245,4314.5,4314.4,3.2078]
[1757532752000,0.9245,4314.5,4314.4,3.4568]
[1757532752905,0.6991,4314.5,4314.4,3.4568]
[1757532753603,0.6991,4314.5,4314.4,3.2078]
[1757532753804,0.6991,4314.5,4314.4,3.4568]
[1757532755510,0.4651,4314.5,4314.4,3.4568]
[1757532756505,0.4651,4314.5,4314.4,3.2078]
[1757532756711,0.4651,4314.5,4314.4,3.4568]
[1757532758208,0.4651,4314.5,4314.4,3.2078]
[1757532758514,0.4651,4314.5,4314.4,3.4568]
[1757532758713,0.6991,4314.5,4314.4,3.4568]
[1757532758920,0.1299,4314.5,4314.4,3.4568]
[1757532759110,0.4539,4314.5,4314.4,3.4568]
[1757532759415,0.4539,4314.5,4314.4,3.2078]
[1757532759709,0.1317,4314.5,4314.4,3.2078]
[1757532759914,0.4557,4314.5,4314.4,3.4568]
[1757532760212,0.9151,4314.5,4314.4,3.4568]
[1757532760616,0.9151,4314.5,4314.4,3.2078]
[1757532760914,0.6897,4314.5,4314.4,3.4568]
[1757532762212,0.1299,4315.5,4314.4,3.87392]
[1757532762619,0.1299,4315.5,4314.4,3.4568]
[1757532762821,0.324,4314.9,4314.4,3.4568]
[1757532763016,0.234,4314.9,4314.4,3.4568]
[1757532763311,0.3639,4315.0,4314.4,3.87392]
[1757532763509,0.6879,4315.0,4314.9,3.2078]
[1757532763709,0.6879,4315.0,4314.9,3.4568]
[1757532765012,0.4539,4315.0,4314.9,3.4568]
[1757532765215,0.1299,4315.5,4314.9,3.64215682]
[1757532765412,0.3639,4315.5,4315.4,3.2078]
[1757532765612,0.6879,4315.5,4315.4,3.2078]
[1757532766422,0.6879,4315.5,4315.4,3.4568]
[1757532767413,0.9133,4315.5,4315.4,3.2078]
[1757532767714,0.9133,4315.5,4315.4,3.4568]
[1757532768313,0.9133,4315.5,4315.4,3.2078]
[1757532771017,0.6879,4315.5,4315.4,3.4568]
[1757532772928,0.4539,4315.5,4315.4,3.4568]
[1757532773124,0.1299,4315.5,4315.4,3.4568]
[1757532773427,0.324,4315.9,4315.4,3.4568]
[1757532773924,0.324,4315.8,4315.4,3.4568]
[1757532774131,0.324,4315.9,4315.4,3.4568]
[1757532774729,0.324,4315.9,4315.5,0.249]
[1757532774930,0.558,4315.9,4315.5,0.249]
[1757532775227,0.558,4315.9,4315.4,3.2078]
[1757532775426,0.4557,4315.5,4315.4,3.2078]
[1757532775616,0.4557,4315.5,4315.4,3.4568]
[1757532776025,0.9151,4315.5,4315.4,3.4568]
[1757532776226,0.9151,4315.5,4315.4,3.2078]
[1757532776418,0.9151,4315.5,4314.6,22.7]
[1757532776419,0.9151,4315.5,4315.2,0.249]
[1757532776628,0.324,4315.4,4315.3,3.2078]
[1757532776827,0.7834,4315.4,4315.3,3.2078]
[1757532780536,0.3325,4314.9,4314.8,3.2078]
[1757532780725,0.5546,4314.9,4314.8,3.4568]
[1757532780927,0.7806,4314.9,4314.8,3.2078]
[1757532781136,0.7806,4314.9,4314.8,3.4568]
[1757532781326,0.7806,4314.9,4314.8,3.2078]
[1757532781630,0.5546,4314.9,4314.8,3.2078]
[1757532782023,0.1337,4315.0,4314.8,3.2078]
[1757532782230,0.4662,4315.0,4314.9,0.249]
[1757532785336,0.4642,4315.5,4314.9,4.48074999]
[1757532785541,0.4642,4315.5,4315.4,3.2078]
[1757532785737,0.4642,4315.5,4315.4,3.4558]
[1757532786130,0.3325,4315.9,4315.4,3.4558]
[1757532786635,0.352,4316.0,4315.4,3.4558]
[1757532786836,0.5546,4315.9,4315.4,0.248]
[1757532787131,0.5546,4315.9,4315.8,3.2078]
[1757532787339,0.7806,4315.9,4315.8,3.2078]